bitfinex/quotes_ETHUSD_20250803
["timestamp","ask_amount","ask_price","bid_price","bid_amount"]
[1754210988608,0.001,3463.7,3463.6,19.18668821]
[1754210989485,0.001,3463.7,3463.6,19.19518821]
[1754210989983,0.001,3463.7,3463.6,19.18668821]
[1754210991433,0.001,3463.7,3463.6,19.19518821]
[1754210995523,0.001,3463.7,3463.6,19.31093221]
[1754211000164,0.001,3463.7,3463.6,19.30243221]
[1754211000368,0.001,3464.1,3464.0,13.35146845]
[1754211000549,0.001,3464.1,3464.0,17.72146845]
[1754211000868,0.001,3464.1,3464.0,18.17456845]
[1754211001740,0.001,3464.1,3464.0,18.29029945]
[1754211002066,0.9496,3464.1,3463.7,1.38283685]
[1754211002349,0.9486,3464.0,3463.8,4.37]
[1754211002728,0.9486,3463.9,3463.8,4.37]
[1754211008412,0.9486,3463.9,3463.8,4.372]
[1754211008703,0.9486,3463.9,3463.6,0.99681976]
[1754211008909,0.455,3463.8,3463.7,4.371]
[1754211009345,0.9486,3463.8,3463.7,4.371]
[1754211009838,0.9486,3463.8,3463.7,4.378]
[1754211010037,0.9486,3463.8,3463.3,13.35146845]
[1754211010251,0.001,3464.1,3463.4,4.378]
[1754211010440,0.9486,3463.7,3463.4,4.378]
[1754211010645,0.001,3464.1,3463.4,4.378]
[1754211010847,0.9486,3463.6,3463.4,4.378]
[1754211011198,0.9486,3463.5,3463.4,4.378]
[1754211012946,0.9486,3463.5,3462.9,13.35146845]
[1754211013236,0.9486,3463.4,3463.0,5.75865685]
[1754211013400,0.9486,3463.3,3463.1,4.378]
[1754211013604,0.4936,3463.2,3463.1,4.378]
[1754211013840,0.9486,3463.2,3463.1,4.378]
[1754211014001,0.9486,3463.2,3463.1,6.15114684]
[1754211014913,0.9486,3463.2,3463.1,1.77314684]
[1754211015114,0.9486,3463.2,3463.1,6.15214684]
[1754211016239,0.9486,3463.2,3463.1,1.77314684]
[1754211016428,0.9486,3463.2,3463.1,6.15214684]
[1754211016950,0.4936,3463.4,3463.1,6.15214684]
[1754211017130,0.455,3463.3,3463.2,1.95036153]
[1754211017332,0.9486,3463.3,3463.2,1.95036153]
[1754211018645,0.9486,3464.0,3463.2,2.43233655]
[1754211018854,0.9486,3463.9,3463.5,13.35146845]
[1754211019158,0.9486,3463.8,3463.6,4.378]
[1754211019525,0.9486,3463.8,3463.6,6.15094684]
[1754211020329,0.4473,3463.7,3463.6,6.15094684]
[1754211020952,0.9305,3463.7,3463.6,6.15094684]
[1754211021142,0.9305,3463.7,3463.6,4.378]
[1754211021478,0.9305,3463.7,3463.1,13.35146845]
[1754211021669,0.9305,3463.6,3463.2,4.379]
[1754211021827,0.001,3464.1,3463.3,4.379]
[1754211022023,0.9305,3463.5,3462.9,0.002]
[1754211022244,0.9305,3463.4,3463.0,4.381]
[1754211022437,0.9305,3463.3,3463.0,4.381]
[1754211022642,0.9305,3463.2,3463.0,4.381]
[1754211022839,0.4473,3463.1,3463.0,4.381]
[1754211023025,0.4473,3463.1,3463.0,6.15464685]
[1754211023225,0.9305,3463.4,3463.0,6.15464685]
[1754211023470,0.4832,3463.4,3463.0,6.15464685]
[1754211023636,0.4473,3463.3,3463.0,6.15464685]
[1754211023840,30.0,3464.0,3463.1,13.35146845]
[1754211024035,6.91242912,3463.9,3463.1,4.38]
[1754211024253,1.04418205,3463.8,3463.1,4.38]
[1754211024440,1.04418205,3463.7,3463.1,4.38]
[1754211024643,1.04418205,3463.6,3463.1,4.38]
[1754211024825,3.0,3463.9,3463.1,4.38]
[1754211025030,0.9305,3463.5,3463.1,4.38]
[1754211025260,1.829,3464.0,3463.1,4.38]
[1754211025441,0.9305,3463.4,3463.1,4.38]
[1754211025655,0.9305,3463.3,3463.1,4.38]
[1754211025852,0.9305,3463.2,3463.1,4.38]
[1754211028564,0.9305,3463.2,3463.1,4.379]
[1754211030335,3.9305,3463.2,3463.1,4.379]
[1754211031975,3.0,3463.2,3463.1,4.379]
[1754211032170,0.001,3464.1,3463.1,4.8454]
[1754211032348,0.4473,3463.7,3463.1,4.87427586]
[1754211032676,0.56098844,3463.7,3463.1,4.87427586]
[1754211033043,0.9305,3463.7,3463.1,4.87427586]
[1754211033238,0.9305,3463.7,3463.2,1.82277443]
[1754211033457,0.001,3464.1,3463.2,1.82277443]
[1754211033744,0.9305,3463.6,3463.2,1.82277443]
[1754211035168,0.4473,3463.5,3463.2,1.82277443]
[1754211038368,0.4832,3463.6,3463.2,2.28917443]
[1754211038676,0.9305,3463.6,3463.2,2.28917443]
[1754211038869,0.4473,3463.5,3463.2,1.82277443]
[1754211039058,0.4473,3463.5,3463.3,2.00196429]
[1754211039379,0.9305,3463.5,3463.4,4.377]
[1754211040547,3.9305,3463.5,3463.4,4.377]
[1754211044750,3.4832,3463.5,3463.4,4.377]
[1754211044972,3.9305,3463.5,3463.4,4.377]
[1754211045952,3.0,3463.4,3462.9,0.002]
[1754211046152,3.0,3463.4,3463.0,4.375]
[1754211046153,0.03378508,3463.3,3463.0,4.375]
[1754211046358,0.9305,3463.2,3463.0,4.375]
[1754211046690,0.9305,3463.1,3463.0,4.375]
[1754211048486,0.9305,3463.1,3462.9,0.002]
[1754211048699,0.55,3463.5,3462.9,0.002]
[1754211048860,0.9305,3463.0,3462.9,0.002]
[1754211051156,1.0442794,3463.0,3462.9,0.002]
[1754211052155,0.9305,3463.0,3462.9,0.002]
[1754211070411,1.04420747,3463.0,3462.9,0.002]
[1754211070908,2.78120747,3463.0,3462.9,0.002]
[1754211071124,4.04420747,3463.0,3462.9,0.002]
[1754211071408,3.9305,3463.0,3462.9,0.002]
[1754211071975,4.04423325,3463.0,3462.9,0.002]
[1754211077415,4.07801833,3463.0,3462.9,0.002]
[1754211077620,4.0781996,3463.0,3462.9,0.002]
[1754211078499,4.04441452,3463.0,3462.9,0.002]
[1754211079812,4.0781996,3463.0,3462.9,0.002]
[1754211080015,4.04441452,3463.0,3462.9,0.002]
[1754211082933,4.04445441,3463.0,3462.9,0.002]
[1754211107808,4.07823949,3463.0,3462.9,0.002]
[1754211108137,4.94436948,3463.0,3462.9,0.002]
[1754211108632,14.38136948,3463.0,3462.9,0.002]
[1754211108835,44.3475844,3463.0,3462.9,0.002]
[1754211112741,43.4170844,3463.0,3462.9,0.002]
[1754211113038,11.63395441,3463.0,3462.9,0.002]
[1754211113536,14.63395441,3463.0,3462.9,0.002]
[1754211114040,11.52,3463.0,3462.9,0.002]
[1754211114246,14.52,3463.0,3462.9,0.002]
[1754211116211,3.0,3463.0,3462.9,0.4533]
[1754211119848,3.0,3463.0,3462.9,0.002]
[1754211121047,3.0,3463.0,3462.9,0.4533]
[1754211124051,3.0,3463.0,3462.9,0.002]
[1754211127737,3.0,3463.0,3462.9,0.4533]
[1754211128024,0.001,3463.7,3462.9,0.4533]
[1754211128025,4.369,3463.5,3462.9,2.30151476]
[1754211128217,3.0,3463.5,3463.0,0.4513]
[1754211128756,3.0,3463.5,3463.0,1.328121]
[1754211128962,3.0,3463.5,3463.1,0.72295358]
[1754211129328,3.459,3463.5,3463.1,0.72295358]
[1754211130231,3.0,3463.5,3463.2,0.4513]
[1754211131460,0.945,3463.7,3463.1,0.27165358]
[1754211131461,0.001,3463.7,3463.3,0.48017419]
[1754211131753,0.001,3463.7,3463.5,13.35146845]
[1754211131953,0.001,3463.7,3463.6,0.02887169]
[1754211132159,0.001,3463.7,3463.6,0.60442169]
[1754211133530,0.001,3463.7,3463.6,0.57555]
[1754211133835,0.001,3463.7,3463.6,2.10928481]
[1754211136434,0.001,3463.7,3463.6,6.48028481]
[1754211136943,0.001,3463.7,3463.6,6.47178481]
[1754211137156,0.001,3463.7,3463.6,6.48028481]
[1754211140137,0.001,3463.7,3463.6,6.47178481]
[1754211142829,0.001,3463.7,3463.6,6.02048481]
[1754211145269,0.001,3464.1,3463.6,6.02048481]
[1754211145270,0.001,3464.1,3463.6,6.48688481]
[1754211145479,0.001,3464.1,3463.7,1.35489518]
[1754211145653,0.001,3464.1,3463.9,13.35146845]
[1754211145855,0.001,3464.1,3464.0,4.368]
[1754211146956,0.001,3464.1,3464.0,4.483737]
[1754211151868,0.4444,3464.1,3464.0,4.483737]
[1754211152073,0.4444,3464.1,3464.0,6.40274706]
[1754211152582,0.001,3464.2,3464.0,6.40274706]
[1754211152782,0.001,3464.3,3464.1,0.49526752]
[1754211152968,0.001,3464.3,3464.2,4.39586669]
[1754211153175,0.001,3464.3,3464.2,4.367]
[1754211153367,0.001,3464.3,3464.2,6.13010795]
[1754211154472,0.001,3464.3,3464.2,6.13860795]
[1754211155271,0.001,3464.3,3464.2,6.13010795]
[1754211158351,0.001,3464.3,3464.2,9.13010795]
[1754211161194,0.001,3464.3,3464.2,9.13860795]
[1754211161592,0.001,3464.3,3464.2,9.68860795]
[1754211162591,0.001,3466.0,3464.3,3.55]
[1754211162774,0.001,3466.0,3465.1,3.0]
[1754211162973,0.001,3466.0,3465.2,7.369]
[1754211163397,0.001,3466.0,3465.2,7.484677]
[1754211164456,0.4434,3465.7,3465.2,7.971177]
[1754211164657,0.4434,3465.7,3465.2,9.89018706]
[1754211164897,0.9025,3465.7,3465.2,9.89018706]
[1754211165598,0.9025,3465.6,3465.2,9.89018706]
[1754211171702,0.9025,3465.6,3465.2,6.89018706]
[1754211171906,0.001,3466.0,3465.2,6.89018706]
[1754211172110,0.001,3466.0,3465.9,13.35146845]
[1754211172265,0.001,3466.0,3465.9,17.72146845]
[1754211172596,0.9157,3466.0,3465.9,17.72146845]
[1754211174996,0.9157,3466.0,3465.9,17.32146845]
[1754211177094,0.001,3466.0,3465.9,17.32146845]
[1754211177433,0.001,3466.0,3465.9,19.186777]
[1754211177582,0.001,3466.0,3465.9,19.650877]
[1754211177783,0.9157,3466.4,3465.9,20.120277]
[1754211178005,0.9147,3466.3,3466.0,0.4641]
[1754211178204,0.4463,3466.3,3466.1,4.39785086]
[1754211178514,0.4463,3466.3,3466.1,4.86195086]
[1754211178813,0.4463,3466.3,3466.1,4.39785086]
[1754211179043,0.9147,3466.3,3466.1,4.39785086]
[1754211180010,0.4463,3466.3,3466.1,5.25749518]
[1754211180708,0.4694,3466.4,3466.1,5.72159518]
[1754211180911,0.001,3466.4,3466.1,5.25749518]
[1754211181209,0.4473,3466.4,3466.3,13.35146845]
[1754211181411,0.4473,3466.4,3466.3,17.71946845]
[1754211182512,0.4473,3466.4,3466.3,19.584777]
[1754211182930,0.9147,3467.4,3466.3,19.584777]
[1754211183086,0.9147,3466.8,3466.3,20.048877]
[1754211183288,0.9147,3466.7,3466.4,0.4641]
[1754211183594,0.9147,3466.9,3466.5,6.18150946]
[1754211183789,0.4684,3466.8,3466.5,4.8311]
[1754211183996,0.1469266,3467.7,3466.5,4.367]
[1754211184317,0.9147,3467.6,3466.5,4.367]
[1754211184521,0.9147,3467.5,3466.5,4.367]
[1754211184815,0.9147,3467.4,3466.5,6.3717877]
[1754211185016,0.9147,3467.3,3466.5,2.0047877]
[1754211185321,3.0,3467.7,3466.6,4.368]
[1754211185322,0.9147,3467.2,3466.6,4.368]
[1754211185615,0.9147,3467.1,3466.6,4.368]
[1754211185797,0.9147,3467.0,3466.6,4.368]
[1754211185996,4.53176219,3467.7,3466.6,6.18635685]
[1754211186197,0.9147,3467.6,3466.6,6.18635685]
[1754211186420,0.4463,3467.6,3466.6,6.18635685]
[1754211186620,0.9147,3467.5,3466.6,6.65045685]
[1754211186821,0.9147,3467.4,3466.7,0.02884587]
[1754211187037,0.9147,3467.4,3466.8,4.367]
[1754211187187,4.735,3467.8,3466.9,0.02884421]
[1754211187390,0.9147,3467.3,3467.0,4.367]
[1754211187612,0.9147,3467.2,3467.0,4.367]
[1754211187822,0.9147,3467.1,3467.0,4.367]
[1754211188318,0.9147,3467.1,3467.0,4.91661457]
[1754211189322,0.9147,3467.1,3467.0,4.92061457]
[1754211191707,0.9157,3467.1,3467.0,4.92061457]
[1754211194786,0.9157,3467.1,3467.0,0.54961457]
[1754211195012,0.9157,3467.1,3467.0,4.37]
[1754211195212,0.9157,3467.1,3466.5,0.867311]
[1754211195410,0.001,3467.1,3466.5,0.867311]
[1754211195584,0.9147,3467.0,3466.5,0.867311]
[1754211195786,0.001,3467.1,3466.5,0.867311]
[1754211195787,0.9147,3466.9,3466.5,0.867311]
[1754211195987,0.001,3467.1,3466.6,4.371]
[1754211196215,0.9147,3466.8,3466.6,4.371]
[1754211196383,0.001,3467.1,3466.6,4.371]
[1754211196587,0.9147,3467.0,3466.6,4.371]
[1754211196933,0.9147,3466.9,3466.6,4.371]
[1754211197088,0.9147,3466.9,3466.0,0.4641]
[1754211197089,0.9147,3466.8,3466.7,4.371]
[1754211197286,0.9147,3466.8,3466.0,0.4641]
[1754211197490,0.9147,3466.7,3466.1,4.37]
[1754211197718,0.9147,3466.6,3466.2,0.5701411]
[1754211197929,0.9147,3466.5,3466.2,0.5701411]
[1754211198091,0.03478508,3467.1,3466.3,4.37]
[1754211198292,0.9147,3466.4,3466.3,4.37]
[1754211202777,0.9147,3466.4,3466.0,0.4795]
[1754211203072,0.9147,3466.4,3466.1,4.371]
[1754211203273,0.9147,3466.4,3466.2,0.48505]
[1754211203470,0.9499,3466.9,3466.3,0.4795]
[1754211203627,0.9499,3466.9,3466.4,4.371]
[1754211203828,0.001,3467.1,3466.4,4.371]
[1754211204157,0.9499,3467.0,3466.4,4.371]
[1754211204361,0.9499,3466.9,3466.4,4.371]
[1754211204539,0.9499,3466.9,3466.4,4.8505]
[1754211204744,0.9499,3466.8,3466.4,4.8505]
[1754211204927,0.4799,3466.8,3466.4,4.8505]
[1754211205131,0.9499,3466.7,3466.4,4.8505]
[1754211206432,0.9499,3466.7,3466.4,4.371]
[1754211206433,0.47,3466.6,3466.4,4.371]
[1754211206966,0.47,3466.6,3466.4,4.8505]
[1754211207165,0.9499,3466.6,3466.4,4.371]
[1754211207460,0.47,3466.5,3466.4,4.371]
[1754211207659,0.9499,3466.5,3466.4,4.371]
[1754211207838,0.47,3466.8,3466.4,4.371]
[1754211208038,0.9499,3466.7,3466.4,4.8505]
[1754211208657,0.47,3466.6,3466.4,4.371]
[1754211208830,0.9499,3466.6,3466.4,4.371]
[1754211211535,0.9499,3466.5,3466.4,4.371]
[1754211212233,0.9499,3466.5,3466.4,4.368]
[1754211212660,0.9499,3466.5,3465.9,0.002]
[1754211212846,0.9499,3466.4,3466.0,4.368]
[1754211213051,0.9499,3466.3,3466.0,4.368]
[1754211213246,0.98368508,3466.2,3465.9,0.002]
[1754211213488,0.9499,3466.2,3465.9,0.002]
[1754211213690,31.735,3466.5,3465.9,0.002]
[1754211213840,0.9499,3466.1,3465.9,0.002]
[1754211214382,0.98368508,3466.0,3465.9,0.002]
[1754211215700,0.9499,3466.0,3465.9,0.002]
[1754211217667,0.98368508,3466.0,3465.9,0.002]
[1754211220303,0.9499,3466.0,3465.9,0.002]
[1754211221575,4.369,3466.5,3465.9,0.002]
[1754211221576,0.9499,3466.6,3465.9,0.4815]
[1754211221908,0.47,3466.8,3466.0,0.4314]
[1754211222096,1.16797764,3467.1,3466.1,4.8495]
[1754211222283,0.11376253,3467.0,3466.1,4.37]
[1754211222489,0.59366253,3467.0,3466.2,2.25184685]
[1754211222690,1.06366253,3467.0,3466.3,0.4795]
[1754211222901,0.4799,3466.9,3466.3,0.4795]
[1754211223281,0.9499,3466.9,3466.3,0.4795]
[1754211225526,0.001,3467.1,3466.3,0.4795]
[1754211225708,0.1148666,3467.1,3466.4,0.70532469]
[1754211226027,0.1148666,3467.1,3466.5,0.4795]
[1754211226532,0.001,3467.1,3466.6,4.8014]
[1754211226697,0.001,3467.1,3466.7,0.4795]
[1754211226915,0.4809,3467.1,3466.8,0.48495]
[1754211227112,0.47,3467.0,3466.6,4.37]
[1754211227305,0.9499,3467.0,3466.6,4.8495]
[1754211227501,0.9499,3467.0,3466.7,0.4795]
[1754211227923,0.001,3467.1,3466.6,4.37]
[1754211228112,0.001,3467.1,3466.8,0.4795]
[1754211228318,0.471,3467.1,3466.8,0.4795]
[1754211228651,0.001,3467.1,3466.9,0.4795]
[1754211228858,0.001,3467.1,3466.9,0.9109]
[1754211229060,0.001,3467.1,3467.0,0.4314]
[1754211229339,0.001,3467.1,3467.0,0.9109]
[1754211230229,0.001,3467.1,3467.0,0.4795]
[1754211232338,0.001,3467.1,3467.0,0.6326986]
[1754211239618,0.001,3467.1,3467.0,4.368]
[1754211239953,0.9172,3467.1,3467.0,4.368]
[1754211240650,0.001,3467.1,3467.0,4.368]
[1754211240946,0.001,3467.1,3467.0,4.8453]
[1754211241347,0.001,3467.1,3467.0,4.368]
[1754211241653,0.45,3467.1,3467.0,4.368]
[1754211241854,0.9172,3467.1,3467.0,4.368]
[1754211245018,0.45,3467.1,3467.0,4.368]
[1754211245330,0.001,3467.1,3467.0,4.368]
[1754211245578,0.45,3467.1,3467.0,4.368]
[1754211247065,0.9172,3467.1,3467.0,4.368]
[1754211247621,0.45,3467.1,3467.0,4.368]
[1754211249387,0.001,3467.1,3467.0,4.8453]
[1754211249554,0.001,3467.1,3467.0,5.378325]
[1754211259126,0.001,3467.1,3467.0,4.901025]
[1754211259326,0.001,3467.1,3467.0,5.378325]
[1754211259562,0.001,3467.1,3467.0,5.830225]
[1754211259864,0.001,3467.1,3467.0,5.378325]
[1754211264263,0.001,3467.1,3467.0,5.375325]
[1754211265083,0.001,3467.1,3467.0,6.693646]
[1754211267373,0.001,3467.1,3467.0,6.242546]
[1754211267910,0.001,3467.1,3467.0,6.693646]
[1754211268357,0.001,3467.1,3467.0,6.242546]
[1754211285626,0.001,3467.1,3467.0,6.693646]
[1754211286846,0.001,3467.1,3467.0,6.242546]
[1754211287055,0.001,3467.1,3467.0,5.764246]
[1754211287333,0.935,3467.1,3467.0,5.764246]
[1754211288303,0.474,3467.1,3467.0,5.764246]
[1754211288728,0.001,3467.1,3467.0,1.400246]
[1754211288929,0.001,3467.1,3467.0,5.764246]
[1754211289130,0.001,3467.5,3467.0,6.218146]
[1754211289330,0.934,3467.4,3467.1,0.6669246]
[1754211289510,0.001,3467.5,3467.2,4.364]
[1754211289721,0.9277,3467.3,3467.2,4.364]
[1754211289920,0.9277,3467.3,3467.2,5.231153]
[1754211290321,0.9277,3467.3,3467.2,4.364]
[1754211291440,0.9277,3467.3,3467.0,1.400221]
[1754211291645,0.9277,3467.2,3467.1,4.364]
[1754211298331,0.9277,3467.2,3467.1,4.9872621]
[1754211299932,0.9287,3467.2,3467.1,4.9872621]
[1754211300128,0.001,3467.2,3467.1,4.9872621]
[1754211300358,0.001,3467.2,3467.1,5.4556621]
[1754211301444,0.001,3467.2,3467.1,18.80713055]
[1754211302529,0.001,3467.2,3467.1,20.12624255]
[1754211302766,0.001,3467.2,3467.1,19.67434255]
[1754211302929,0.001,3467.2,3467.1,20.12624255]
[1754211305462,0.001,3467.2,3467.1,23.27024255]
[1754211307332,0.001,3467.5,3467.2,3.55]
[1754211307533,0.001,3467.5,3467.4,3.694]
[1754211308074,0.001,3467.5,3467.4,4.6143]
[1754211308273,0.1471474,3469.2,3467.4,4.6143]
[1754211308274,0.4321,3468.8,3467.4,4.4703]
[1754211308571,0.9277,3468.6,3468.1,13.35146845]
[1754211308775,0.9277,3468.5,3468.2,4.363]
[1754211309071,0.9277,3468.4,3468.2,4.363]
[1754211309273,0.4321,3468.4,3468.2,4.363]
[1754211309449,0.9277,3468.6,3468.2,4.8314]
[1754211309676,0.9277,3468.6,3468.3,1.04562434]
[1754211309886,0.4321,3468.5,3468.4,4.363]
[1754211310057,0.9277,3468.5,3468.4,4.363]
[1754211311372,0.9277,3468.8,3468.4,4.8314]
[1754211311700,0.4321,3468.7,3468.4,4.8314]
[1754211311870,0.9277,3468.7,3468.5,0.866873]
[1754211312075,0.4956,3468.7,3468.6,4.363]
[1754211312878,0.9277,3468.7,3468.6,4.363]
[1754211313093,0.9277,3468.7,3468.6,5.229873]
[1754211313803,0.4321,3468.7,3468.6,5.229873]
[1754211314098,0.4956,3468.9,3468.6,5.229873]
[1754211314261,0.9277,3468.9,3468.6,5.698273]
[1754211316969,0.9277,3468.8,3468.6,5.229873]
[1754211317206,0.9277,3468.7,3468.6,5.229873]
[1754211319804,0.9363,3469.0,3468.6,5.7997003]
[1754211320017,0.4821,3469.0,3468.6,6.2835003]
[1754211320224,0.4542,3468.9,3468.6,6.2835003]
[1754211320521,0.9353,3468.9,3468.6,6.2835003]
[1754211321565,0.9353,3468.8,3468.6,5.7997003]
[1754211321771,0.9353,3468.7,3468.6,5.7997003]
[1754211322082,0.9353,3468.7,3468.6,5.229873]
[1754211324021,0.9353,3468.7,3468.6,0.866873]
[1754211324310,0.9353,3468.7,3468.6,5.228873]
[1754211324515,0.4542,3468.7,3468.6,5.228873]
[1754211324722,0.4542,3468.7,3468.6,5.8001403]
[1754211324892,0.001,3468.8,3468.6,5.8001403]
[1754211325287,0.9363,3468.8,3468.6,4.9332673]
[1754211325493,0.4821,3468.8,3468.7,0.4811]
[1754211325697,0.9363,3468.8,3468.7,0.4811]
[1754211329614,0.9363,3468.8,3468.7,4.8431]
[1754211330674,0.9363,3468.8,3468.7,0.4811]
[1754211330889,0.9363,3468.8,3468.7,4.8431]
[1754211334397,0.9363,3468.8,3468.7,0.4811]
[1754211335014,0.9363,3468.8,3468.7,4.362]
[1754211335813,0.9363,3468.8,3468.5,0.866953]
[1754211336019,0.9363,3468.8,3467.4,0.436]
[1754211336020,0.9353,3468.7,3468.6,4.362]
[1754211336504,1.32903,3468.7,3468.6,4.362]
[1754211336708,1.32903,3468.7,3468.1,0.867026]
[1754211337021,0.9353,3468.6,3468.2,4.362]
[1754211337236,0.4542,3468.5,3468.2,4.362]
[1754211337395,0.9353,3468.5,3468.2,4.362]
[1754211337810,1.736,3468.8,3468.2,4.362]
[1754211338012,0.9353,3468.4,3468.2,4.362]
[1754211338192,1.736,3468.8,3468.2,4.362]
[1754211338392,0.9353,3468.7,3468.2,4.362]
[1754211338928,0.001,3468.8,3468.2,4.362]
[1754211339128,0.9353,3468.7,3468.2,4.362]
[1754211339335,0.9353,3468.6,3468.2,4.362]
[1754211339624,0.9353,3468.5,3468.2,4.362]
[1754211339833,0.9353,3468.4,3468.2,4.362]
[1754211340025,0.9353,3468.3,3468.2,4.362]
[1754211344708,0.4542,3468.3,3468.2,4.362]
[1754211344938,0.4811,3468.5,3468.2,4.362]
[1754211345235,0.9353,3468.5,3468.2,4.8458]
[1754211345595,0.001,3468.8,3468.2,4.362]
[1754211345596,0.9363,3468.8,3468.2,4.362]
[1754211345799,0.9363,3468.8,3468.3,0.4838]
[1754211346037,0.9353,3468.7,3468.3,0.4838]
[1754211346921,0.9353,3468.6,3468.3,0.4838]
[1754211347329,0.001,3468.8,3468.3,0.5714788]
[1754211347532,0.001,3468.8,3468.4,0.9198]
[1754211347703,0.001,3468.8,3468.5,4.362]
[1754211347906,0.9363,3468.8,3468.5,4.8458]
[1754211348141,0.9363,3468.8,3468.5,6.25444288]
[1754211349047,0.4552,3468.8,3468.6,0.4838]
[1754211349548,0.001,3468.8,3468.5,4.90372788]
[1754211349708,0.001,3468.8,3468.7,0.4838]
[1754211354112,0.001,3468.8,3468.6,0.4821]
[1754211354309,0.001,3468.8,3468.6,1.07783067]
[1754211354514,0.9193,3468.7,3468.6,0.4821]
[1754211355649,0.001,3468.8,3468.6,0.4821]
[1754211355860,0.001,3468.8,3468.6,0.969]
[1754211356759,0.001,3468.8,3468.7,4.362]
[1754211357827,0.001,3468.8,3468.7,4.8489]
[1754211358328,0.001,3468.8,3468.7,5.83438317]
[1754211359080,0.001,3468.8,3468.7,8.83438317]
[1754211359976,0.001,3468.8,3468.7,8.38488317]
[1754211361060,0.001,3468.8,3468.7,9.25171117]
[1754211361362,0.001,3468.8,3468.7,9.70121117]
[1754211362063,0.001,3468.8,3468.7,9.25171117]
[1754211362831,0.001,3468.8,3468.7,6.70121117]
[1754211363879,0.001,3468.8,3468.7,6.25171117]
[1754211375890,0.001,3468.8,3468.7,6.25171117]
[1754211378467,0.001,3468.8,3468.7,6.70121117]
[1754211380075,0.001,3468.8,3468.7,6.68731117]
[1754211384266,1.735,3470.6,3468.7,6.68731117]
[1754211384608,2.57423577,3470.5,3469.5,13.35146845]
[1754211384771,0.9505,3470.4,3469.6,4.361]
[1754211384979,0.9505,3470.3,3469.6,4.361]
[1754211385173,1.735,3470.8,3469.6,5.33947326]
[1754211385174,0.9505,3470.2,3469.6,5.33947326]
[1754211385372,0.9505,3470.1,3469.6,5.33947326]
[1754211385582,0.9505,3470.0,3469.6,5.33947326]
[1754211385789,1.735,3470.9,3469.7,0.866569]
[1754211385984,0.9505,3469.9,3469.8,4.361]
[1754211386995,0.9505,3469.9,3469.8,5.22757]
[1754211388849,0.4685,3469.9,3469.8,5.22757]
[1754211389335,0.4685,3470.2,3469.8,5.22757]
[1754211389513,0.9505,3470.2,3469.9,0.02881927]
[1754211389699,0.9505,3470.2,3470.0,4.36]
[1754211389899,0.9505,3470.1,3470.0,4.36]
[1754211390210,0.001,3470.4,3470.0,4.36]
[1754211390402,0.9505,3470.3,3470.0,4.36]
[1754211390598,0.9505,3470.2,3470.1,0.54302492]
[1754211393032,0.9505,3470.2,3470.1,4.36]
[1754211393532,0.9505,3470.2,3469.8,0.57514918]
[1754211393757,0.4685,3470.1,3469.9,4.36]
[1754211393936,0.482,3470.1,3470.0,4.36]
[1754211394734,0.9505,3470.1,3469.4,0.144]
[1754211394898,0.4685,3470.0,3469.2,0.144]
[1754211395097,0.4685,3470.0,3469.5,0.86655]
[1754211395331,0.4685,3470.0,3469.6,4.36]
[1754211395537,0.4685,3470.0,3469.5,0.86655]
[1754211395538,0.482,3469.9,3469.1,0.4951]
[1754211395713,0.482,3469.9,3469.2,4.361]
[1754211395909,0.4685,3469.8,3469.2,4.361]
[1754211396145,0.482,3469.7,3469.3,4.361]
[1754211396329,0.4685,3469.6,3469.3,4.361]
[1754211396525,0.9505,3469.5,3469.4,4.361]
[1754211397455,0.9505,3469.5,3468.9,0.482]
[1754211397771,0.9505,3469.4,3469.0,4.361]
[1754211397945,0.001,3470.4,3469.1,0.48561]
[1754211398145,0.9505,3469.3,3469.0,4.361]
[1754211398331,0.482,3469.3,3469.0,4.361]
[1754211398530,0.4685,3469.2,3469.0,4.361]
[1754211399135,0.482,3469.2,3468.8,0.482]
[1754211399468,0.4685,3469.1,3468.9,4.36]
[1754211399631,0.4685,3469.1,3469.0,0.48551]
[1754211399832,0.4685,3469.1,3469.0,4.36]
[1754211401069,0.9505,3469.1,3468.7,0.4951]
[1754211401369,0.9505,3469.3,3468.8,4.8551]
[1754211401562,0.9505,3469.2,3468.9,0.4951]
[1754211401761,0.4685,3469.1,3469.0,4.36]
[1754211402566,0.9505,3469.1,3469.0,4.36]
[1754211402937,0.9505,3469.1,3468.7,13.84656845]
[1754211403169,0.55,3470.1,3468.8,4.36]
[1754211403380,14.48940097,3468.9,3468.4,13.35146845]
[1754211403602,0.9505,3468.8,3468.5,4.36]
[1754211403901,0.9505,3468.7,3468.5,4.36]
[1754211404105,14.48940097,3468.9,3468.5,4.36]
[1754211404407,0.9505,3468.6,3468.5,4.36]
[1754211404705,0.9505,3468.6,3468.0,13.35146845]
[1754211404873,12.42048508,3468.2,3468.1,1.34954685]
[1754211405072,12.42048508,3468.2,3468.1,5.71054685]
[1754211406085,12.42048508,3468.2,3468.1,1.34954685]
[1754211406300,12.42048508,3468.2,3468.1,5.71054685]